bitfinex/quotes_BTCUSD_20230905
["timestamp","ask_amount","ask_price","bid_price","bid_amount"]
[1693875134033,4.77649055,25761.0,25760.0,0.014796]
[1693875134238,4.77739055,25761.0,25760.0,0.014796]
[1693875134437,4.77751055,25761.0,25760.0,0.014796]
[1693875134636,4.77763055,25761.0,25760.0,0.014796]
[1693875134842,4.77703055,25761.0,25760.0,0.014796]
[1693875135049,4.77619055,25761.0,25760.0,0.014796]
[1693875135655,4.77241055,25761.0,25760.0,0.014796]
[1693875135972,4.77253055,25761.0,25760.0,0.014796]
[1693875136169,4.77481055,25761.0,25760.0,0.014796]
[1693875136394,4.77475055,25761.0,25760.0,0.014796]
[1693875136599,4.77487055,25761.0,25760.0,0.014796]
[1693875136727,4.77253055,25761.0,25760.0,0.014796]
[1693875136929,4.76647055,25761.0,25760.0,0.014796]
[1693875137133,4.87286849,25761.0,25760.0,0.014796]
[1693875137348,6.47381933,25761.0,25760.0,0.014796]
[1693875137547,6.48593933,25761.0,25760.0,0.014796]
[1693875137772,6.48521933,25761.0,25760.0,0.014796]
[1693875137982,6.48665933,25761.0,25760.0,0.014796]
[1693875138320,6.48761933,25761.0,25760.0,0.014796]
[1693875138548,6.48533933,25761.0,25760.0,0.014796]
[1693875138723,6.48449933,25761.0,25760.0,0.014796]
[1693875138934,6.48305933,25761.0,25760.0,0.014796]
[1693875139131,6.48365933,25761.0,25760.0,0.014796]
[1693875139290,6.48401933,25761.0,25760.0,0.014796]
[1693875139494,6.49361933,25761.0,25760.0,0.014796]
[1693875139694,6.48377933,25761.0,25760.0,0.014796]
[1693875139917,6.48377933,25761.0,25759.0,0.019796]
[1693875139918,0.05579599,25759.0,25756.0,0.2348]
[1693875140121,3.49247327,25758.0,25756.0,0.2348]
[1693875140329,0.45890742,25757.0,25754.0,0.033796]
[1693875140478,0.32393564,25755.0,25754.0,0.033796]
[1693875140692,1.48712891,25755.0,25754.0,0.033796]
[1693875140896,1.56543758,25755.0,25754.0,0.033796]
[1693875141162,1.91576621,25755.0,25754.0,0.014796]
[1693875141398,4.93604812,25755.0,25754.0,0.014796]
[1693875141608,4.97561001,25755.0,25754.0,0.016796]
[1693875141802,5.62172533,25755.0,25754.0,0.016796]
[1693875141933,5.32283804,25755.0,25754.0,0.019796]
[1693875142138,5.71320331,25755.0,25754.0,0.019796]
[1693875142349,0.046,25753.0,25752.0,0.019796]
[1693875142547,4.79720364,25753.0,25752.0,0.019796]
[1693875142768,5.96620771,25753.0,25752.0,0.019796]
[1693875142964,6.56889573,25753.0,25752.0,0.019796]
[1693875143157,6.57057573,25753.0,25752.0,0.014796]
[1693875143355,6.98451573,25753.0,25752.0,0.014796]
[1693875143589,6.98391573,25753.0,25752.0,0.014796]
[1693875143847,6.64212492,25753.0,25752.0,0.014796]
[1693875144049,6.61560492,25753.0,25752.0,0.014796]
[1693875144251,6.61620492,25753.0,25752.0,0.014796]
[1693875144430,6.61800492,25753.0,25752.0,0.014796]
[1693875144630,6.66624492,25753.0,25752.0,0.014796]
[1693875144807,6.39114708,25753.0,25752.0,0.014796]
[1693875145003,6.39126708,25753.0,25752.0,0.014796]
[1693875145206,6.39114708,25753.0,25752.0,0.014796]
[1693875145413,6.39738708,25753.0,25752.0,0.014796]
[1693875145611,6.39642708,25753.0,25752.0,0.014796]
[1693875145817,6.39594708,25753.0,25752.0,0.014796]
[1693875146017,6.39570708,25753.0,25752.0,0.014796]
[1693875146282,6.39558708,25753.0,25752.0,0.014796]
[1693875146445,6.39570708,25753.0,25752.0,0.014796]
[1693875146622,6.39318708,25753.0,25752.0,0.014796]
[1693875146839,6.38910708,25753.0,25752.0,0.014796]
[1693875147112,6.38922708,25753.0,25752.0,0.014796]
[1693875147315,6.38694708,25753.0,25752.0,0.014796]
[1693875147516,6.38046708,25753.0,25752.0,0.014796]
[1693875147718,6.37638708,25753.0,25752.0,0.014796]
[1693875147893,6.36762708,25753.0,25752.0,0.014796]
[1693875148142,6.36942708,25753.0,25752.0,0.014796]
[1693875148348,6.36342708,25753.0,25752.0,0.014796]
[1693875148540,6.35358708,25753.0,25752.0,0.014796]
[1693875148766,6.35502708,25753.0,25752.0,0.014796]
[1693875148886,6.35982708,25753.0,25752.0,0.014796]
[1693875149084,6.36102708,25753.0,25752.0,0.014796]
[1693875149291,6.36234708,25753.0,25752.0,0.014796]
[1693875149497,6.35982708,25753.0,25752.0,0.014796]
[1693875149719,6.36114708,25753.0,25752.0,0.014796]
[1693875149967,6.35922708,25753.0,25752.0,0.014796]
[1693875150175,6.36090708,25753.0,25752.0,0.014796]
[1693875150407,6.36138708,25753.0,25752.0,0.014796]
[1693875150621,6.64500492,25753.0,25752.0,0.014796]
[1693875150826,6.64320492,25753.0,25752.0,0.014796]
[1693875151040,6.64356492,25753.0,25752.0,0.014796]
[1693875151250,6.64344492,25753.0,25752.0,0.014796]
[1693875151462,5.83612249,25753.0,25752.0,0.014796]
[1693875151671,5.66698249,25753.0,25752.0,0.014796]
[1693875151859,5.86979156,25753.0,25752.0,0.014796]
[1693875152058,5.87363156,25753.0,25752.0,0.014796]
[1693875152267,5.67038652,25753.0,25752.0,0.014796]
[1693875152480,6.05811179,25753.0,25752.0,0.014796]
[1693875152685,6.04863179,25753.0,25752.0,0.014796]
[1693875152889,6.04815179,25753.0,25752.0,0.014796]
[1693875153084,6.12560201,25753.0,25752.0,0.014796]
[1693875153295,6.03019179,25753.0,25752.0,0.014796]
[1693875153540,6.03451179,25753.0,25752.0,0.014796]
[1693875153759,6.12584745,25753.0,25752.0,0.014796]
[1693875153952,6.03607179,25753.0,25752.0,0.014796]
[1693875154160,6.03643179,25753.0,25752.0,0.014796]
[1693875154385,6.14713334,25753.0,25752.0,0.014796]
[1693875154559,6.14785334,25753.0,25752.0,0.014796]
[1693875154762,6.03799179,25753.0,25752.0,0.014796]
[1693875154915,6.08083179,25753.0,25752.0,0.014796]
[1693875155125,6.08263179,25753.0,25752.0,0.014796]
[1693875155309,6.08371179,25753.0,25752.0,0.014796]
[1693875155523,6.08431179,25753.0,25752.0,0.014796]
[1693875156118,6.08311179,25753.0,25752.0,0.014796]
[1693875156417,6.10135179,25753.0,25752.0,0.014796]
[1693875156619,6.54417179,25753.0,25752.0,0.014796]
[1693875156835,6.54993179,25753.0,25752.0,0.014796]
[1693875157003,6.55005179,25753.0,25752.0,0.014796]
[1693875157218,6.55017179,25753.0,25752.0,0.014796]
[1693875157418,6.54789179,25753.0,25752.0,0.014796]
[1693875157590,6.54705179,25753.0,25752.0,0.014796]
[1693875157791,6.82502963,25753.0,25752.0,0.014796]
[1693875157995,6.82514963,25753.0,25752.0,0.014796]
[1693875158195,6.82430963,25753.0,25752.0,0.014796]
[1693875158407,6.82442963,25753.0,25752.0,0.014796]
[1693875158600,6.82478963,25753.0,25752.0,0.014796]
[1693875158885,6.82346963,25753.0,25752.0,0.014796]
[1693875159012,6.82142963,25753.0,25752.0,0.014796]
[1693875159224,6.82166963,25753.0,25752.0,0.014796]
[1693875159540,6.82598963,25753.0,25752.0,0.014796]
[1693875159737,0.07579599,25751.0,25750.0,0.0238029]
[1693875159940,3.65321326,25751.0,25750.0,0.0238029]
[1693875160154,4.55809733,25751.0,25750.0,0.0238029]
[1693875160355,4.70317733,25751.0,25750.0,0.0238029]
[1693875160551,4.69681733,25751.0,25750.0,0.0238029]
[1693875160782,4.55749733,25751.0,25750.0,0.0238029]
[1693875160982,4.55756218,25751.0,25750.0,0.0238029]
[1693875161192,4.55768218,25751.0,25750.0,0.0238029]
[1693875161396,4.70282218,25751.0,25750.0,0.0238029]
[1693875161565,4.55708218,25751.0,25750.0,0.0238029]
[1693875161766,4.55738218,25751.0,25750.0,0.0238029]
[1693875162218,4.74686218,25751.0,25750.0,0.0238029]
[1693875162345,4.84041993,25751.0,25750.0,0.0238029]
[1693875162568,4.82613993,25751.0,25750.0,0.0238029]
[1693875162795,4.82745993,25751.0,25750.0,0.0238029]
[1693875162999,4.82673993,25751.0,25750.0,0.0238029]
[1693875163206,4.82577993,25751.0,25750.0,0.0238029]
[1693875163626,4.82541993,25751.0,25750.0,0.0238029]
[1693875163853,4.82517993,25751.0,25750.0,0.0238029]
[1693875164055,4.82529993,25751.0,25750.0,0.0238029]
[1693875164306,4.82553993,25751.0,25750.0,0.0238029]
[1693875164527,4.82565993,25751.0,25750.0,0.0238029]
[1693875164728,4.82601993,25751.0,25750.0,0.0238029]
[1693875164902,4.82697993,25751.0,25750.0,0.0238029]
[1693875165107,4.82793993,25751.0,25750.0,0.0238029]
[1693875165313,4.81994394,25751.0,25750.0,0.0238029]
[1693875165471,4.82006394,25751.0,25750.0,0.0238029]
[1693875165814,4.81994394,25751.0,25750.0,0.0238029]
[1693875166014,4.82018394,25751.0,25750.0,0.0238029]
[1693875166351,4.81946394,25751.0,25750.0,0.0238029]
[1693875166598,4.81418394,25751.0,25750.0,0.0238029]
[1693875166798,4.81358394,25751.0,25750.0,0.0238029]
[1693875167001,4.88313635,25751.0,25750.0,0.0238029]
[1693875167256,4.88325635,25751.0,25750.0,0.0238029]
[1693875167463,4.88349635,25751.0,25750.0,0.0238029]
[1693875167772,4.88361635,25751.0,25750.0,0.0238029]
[1693875167975,4.88145635,25751.0,25750.0,0.0238029]
[1693875168321,4.88265635,25751.0,25750.0,0.0238029]
[1693875168454,4.77675635,25751.0,25750.0,0.0238029]
[1693875168662,4.59441635,25751.0,25750.0,0.0238029]
[1693875168911,4.60593635,25751.0,25750.0,0.0238029]
[1693875169130,4.61343635,25751.0,25750.0,0.0238029]
[1693875169342,4.61409635,25751.0,25750.0,0.0238029]
[1693875169547,4.61709635,25751.0,25750.0,0.0238029]
[1693875169745,4.61967635,25751.0,25750.0,0.0238029]
[1693875169952,0.13667486,25750.0,25748.0,0.1319022]
[1693875170170,3.03926168,25749.0,25748.0,0.1319022]
[1693875170374,3.23126799,25749.0,25747.0,0.103896]
[1693875170593,0.09212254,25748.0,25747.0,0.103896]
[1693875170800,2.03228581,25748.0,25747.0,0.103896]
[1693875171007,2.0326491,25748.0,25747.0,0.103896]
[1693875171423,2.07871059,25748.0,25747.0,0.103896]
[1693875172251,2.09171059,25748.0,25747.0,0.103896]
[1693875172683,2.10571059,25748.0,25747.0,0.103896]
[1693875174886,2.10571059,25748.0,25747.0,0.18849543]
[1693875175060,0.64436179,25748.0,25747.0,1.43908961]
[1693875175415,0.50617776,25748.0,25747.0,1.08953461]
[1693875175620,0.64436179,25748.0,25747.0,1.08953461]
[1693875176232,0.50617776,25748.0,25747.0,1.43908961]
[1693875176433,0.50617776,25748.0,25747.0,1.45308961]
[1693875177355,0.64436179,25748.0,25747.0,1.10353461]
[1693875178784,0.55219259,25748.0,25747.0,1.10353461]
[1693875180765,0.73643797,25748.0,25747.0,1.10353461]
[1693875181663,1.12602663,25748.0,25747.0,1.10353461]
[1693875182548,0.6669695,25748.0,25747.0,1.10353461]
[1693875182769,1.35633295,25748.0,25747.0,1.10353461]
[1693875183934,1.17208757,25748.0,25747.0,1.10353461]
[1693875186726,0.94178085,25748.0,25747.0,1.10353461]
[1693875189632,0.55513558,25748.0,25747.0,1.45308961]
[1693875189837,0.32743762,25748.0,25747.0,1.45308961]
[1693875190035,0.51252746,25748.0,25747.0,1.45308961]
[1693875190242,0.97158419,25748.0,25747.0,1.45308961]
[1693875190454,0.97158419,25748.0,25747.0,1.53308961]
[1693875190658,0.74022542,25748.0,25747.0,1.53308961]
[1693875190863,0.41997431,25748.0,25747.0,1.53308961]
[1693875191822,0.23488447,25748.0,25747.0,1.53308961]
[1693875192813,0.32740985,25748.0,25747.0,1.33116043]
[1693875193713,0.18860423,25748.0,25747.0,1.33116043]
[1693875193911,0.09607885,25748.0,25747.0,1.37116043]
[1693875195151,0.02736329,25748.0,25747.0,1.37116043]
[1693875195901,0.027,25748.0,25747.0,1.37116043]
[1693875196805,0.027,25748.0,25747.0,1.51812841]
[1693875197182,0.09594307,25748.0,25747.0,1.51812841]
[1693875197521,0.09594307,25748.0,25747.0,1.37116043]
[1693875197963,0.09630907,25748.0,25747.0,1.37116043]
[1693875198166,0.09630907,25748.0,25747.0,1.52637545]
[1693875200879,0.09630907,25748.0,25747.0,1.37116043]
[1693875203025,0.48295434,25748.0,25747.0,1.12795113]
[1693875203484,0.63761245,25748.0,25747.0,0.65839613]
[1693875203687,0.48295434,25748.0,25747.0,0.75839613]
[1693875203887,0.48295434,25748.0,25747.0,0.77839613]
[1693875204729,0.48295434,25748.0,25747.0,1.12795113]
[1693875207188,0.48295434,25748.0,25747.0,1.47750613]
[1693875207395,0.48295434,25748.0,25747.0,1.62525724]
[1693875209505,0.09630907,25748.0,25747.0,1.62525724]
[1693875266887,0.09630907,25748.0,25747.0,1.61525724]
[1693875271023,0.09630907,25748.0,25747.0,1.59525724]
[1693875275752,0.09630907,25748.0,25747.0,1.40431211]
[1693875275986,0.41641934,25751.0,25749.0,0.1]
[1693875275987,0.09253763,25751.0,25749.0,0.1]
[1693875276169,0.09253763,25752.0,25751.0,0.014]
[1693875276366,0.09253763,25752.0,25751.0,0.3635]
[1693875276688,0.09253763,25752.0,25751.0,0.8312528]
[1693875276845,0.14889268,25752.0,25751.0,1.1807528]
[1693875277049,0.14919596,25752.0,25751.0,1.1807528]
[1693875277352,0.14919596,25752.0,25751.0,1.37429995]
[1693875277551,0.15119596,25752.0,25751.0,1.37429995]
[1693875277756,0.05865833,25752.0,25751.0,1.37429995]
[1693875278163,0.05865833,25752.0,25751.0,1.37529995]
[1693875278164,0.06165833,25752.0,25751.0,1.37529995]
[1693875279301,0.06165833,25752.0,25751.0,1.45939995]
[1693875280019,0.06165833,25752.0,25751.0,1.59820695]
[1693875291328,0.06165833,25752.0,25751.0,1.71820695]
[1693875292391,0.05665833,25752.0,25751.0,1.71720695]
[1693875292654,0.05765833,25752.0,25751.0,1.72420695]
[1693875293576,0.05865833,25752.0,25751.0,1.5376598]
[1693875294785,0.05865833,25752.0,25751.0,1.73387945]
[1693875294981,0.05865833,25752.0,25751.0,1.5376598]
[1693875295201,0.05865833,25752.0,25751.0,1.69916699]
[1693875297012,0.05865833,25752.0,25751.0,1.5376598]
[1693875298995,0.05865833,25752.0,25751.0,1.72246506]
[1693875304734,0.05865833,25752.0,25751.0,1.70246506]
[1693875310010,0.05865833,25752.0,25751.0,1.5176598]
[1693875311214,0.05865833,25752.0,25751.0,1.69950891]
[1693875312039,0.05835505,25752.0,25751.0,1.5176598]
[1693875312629,0.05835505,25752.0,25751.0,1.67202834]
[1693875316568,0.05835505,25752.0,25751.0,1.5176598]
[1693875316774,0.05835505,25752.0,25751.0,2.0271025]
[1693875316975,0.002,25752.0,25751.0,2.0271025]
[1693875317714,0.001,25752.0,25751.0,2.0201025]
[1693875317961,0.003,25752.0,25751.0,2.0421025]
[1693875318397,0.001,25752.0,25751.0,2.0201025]
[1693875318594,0.1555,25755.0,25754.0,1.41184]
[1693875318800,0.28783763,25756.0,25755.0,0.712892]
[1693875318969,0.09253763,25756.0,25755.0,0.796992]
[1693875319490,0.09253763,25756.0,25755.0,1.146438]
[1693875319839,0.09253763,25756.0,25755.0,1.147438]
[1693875319840,0.10453763,25756.0,25755.0,1.147438]
[1693875320688,0.25634408,25756.0,25755.0,1.148438]
[1693875320864,0.25634408,25756.0,25755.0,1.2666908]
[1693875321777,0.16380645,25756.0,25755.0,1.2666908]
[1693875321982,0.16380645,25756.0,25755.0,1.33683742]
[1693875323174,0.25637759,25756.0,25755.0,1.33683742]
[1693875323371,0.11757114,25756.0,25755.0,1.33683742]
[1693875323931,0.025,25756.0,25755.0,1.33683742]
[1693875324344,0.012,25756.0,25755.0,1.33583742]
[1693875324733,0.23137759,25757.0,25756.0,1.062299]
[1693875324940,0.09257114,25757.0,25756.0,1.23166116]
[1693875326601,0.09557114,25757.0,25756.0,1.23166116]
[1693875327123,0.09957114,25757.0,25756.0,1.23266116]
[1693875327527,0.09957114,25757.0,25756.0,1.39668874]
[1693875327976,0.007,25757.0,25756.0,1.74612174]
[1693875328767,0.004,25757.0,25756.0,1.74612174]
[1693875328921,0.39647759,25759.0,25756.0,1.74512174]
[1693875329126,0.001,25757.0,25756.0,1.58175958]
[1693875329308,0.001,25757.0,25756.0,1.66485958]
[1693875329509,0.002,25757.0,25756.0,1.506832]
[1693875329713,0.002,25757.0,25756.0,1.501832]
[1693875329714,0.001,25757.0,25756.0,1.501832]
[1693875329914,0.5974832,25757.0,25756.0,0.453533]
[1693875330547,0.001,25757.0,25756.0,0.97021481]
[1693875330749,0.001,25757.0,25756.0,1.31964781]
[1693875331000,0.001,25757.0,25756.0,1.31464781]
[1693875331955,0.0013012,25757.0,25756.0,1.31464781]
[1693875332159,0.05500901,25757.0,25756.0,1.31464781]
[1693875332382,0.05600901,25757.0,25756.0,1.31964781]
[1693875336243,0.05600901,25757.0,25756.0,1.157399]
[1693875336453,0.05600901,25757.0,25756.0,1.34277486]
[1693875339396,0.05600901,25757.0,25756.0,1.157399]
[1693875339800,0.05600901,25757.0,25756.0,1.565099]
[1693875340004,0.05570781,25757.0,25756.0,1.73336124]
[1693875340412,0.05470781,25757.0,25756.0,1.72836124]
[1693875340822,0.05370781,25757.0,25756.0,1.72236124]
[1693875341023,0.05403293,25757.0,25756.0,1.72236124]
[1693875341222,0.00032512,25757.0,25756.0,1.72236124]
[1693875341429,0.00032512,25757.0,25756.0,1.74636124]
[1693875341430,0.00232512,25757.0,25756.0,1.74636124]
[1693875341630,0.00432512,25757.0,25756.0,1.77036124]
[1693875341836,0.00232512,25757.0,25756.0,1.578099]
[1693875342177,0.00232512,25757.0,25756.0,1.577099]
[1693875342387,0.00232512,25757.0,25756.0,1.801199]
[1693875342600,0.00432512,25757.0,25756.0,2.22984427]
[1693875343013,0.004,25757.0,25756.0,2.22984427]
[1693875343216,0.002,25757.0,25756.0,2.20784427]
[1693875343620,0.004,25757.0,25756.0,2.23184427]
[1693875343827,0.002,25757.0,25756.0,2.20884427]
[1693875344032,0.004,25757.0,25756.0,2.23384427]
[1693875345651,0.004,25757.0,25756.0,2.14974427]
[1693875348911,0.004,25757.0,25756.0,2.18007723]
[1693875350756,0.004,25757.0,25756.0,2.17507723]
[1693875352603,0.004,25757.0,25756.0,2.27917723]
[1693875352806,0.25088628,25762.0,25757.0,0.06]
[1693875353009,0.2312157,25763.0,25762.0,0.009]
[1693875353208,0.09248628,25763.0,25762.0,0.98969631]
[1693875353418,0.09248628,25763.0,25762.0,1.79577794]
[1693875353419,0.14881096,25763.0,25762.0,1.79577794]
[1693875353615,0.05632468,25763.0,25762.0,1.79577794]
[1693875353982,0.05632468,25763.0,25762.0,1.95105194]
[1693875354348,0.05632468,25763.0,25762.0,1.95405194]
[1693875354579,0.05632468,25763.0,25762.0,1.95105194]
[1693875354762,0.05632468,25763.0,25762.0,1.95405194]
[1693875355009,0.05632468,25763.0,25762.0,1.95105194]
[1693875355382,0.05632468,25763.0,25762.0,1.95405194]
[1693875355823,0.05732468,25763.0,25762.0,1.96305194]
[1693875360648,0.05732468,25763.0,25762.0,1.96005194]
[1693875360861,0.05632468,25763.0,25762.0,1.91725763]
[1693875361025,0.05632468,25763.0,25762.0,2.06985066]
[1693875361430,0.166,25765.0,25763.0,0.02]
[1693875361631,0.09248628,25766.0,25765.0,0.009]
[1693875361827,0.32212106,25767.0,25765.0,0.791722]
[1693875362027,0.22963478,25767.0,25766.0,0.0931]
[1693875362237,0.22963478,25767.0,25766.0,1.140991]
[1693875362433,0.22963478,25767.0,25766.0,1.24837063]
[1693875363452,0.13872942,25767.0,25766.0,1.24837063]
[1693875365456,0.13872942,25767.0,25766.0,0.54977663]
[1693875365668,0.13872942,25767.0,25766.0,1.24837063]
[1693875368181,0.32345114,25767.0,25766.0,1.24837063]
[1693875368394,0.18497257,25767.0,25766.0,1.24837063]
[1693875368822,0.32344696,25767.0,25766.0,1.24837063]
[1693875368970,0.18497257,25767.0,25766.0,1.24837063]
[1693875370819,0.28819023,25767.0,25766.0,1.24837063]
[1693875371222,0.28783849,25767.0,25766.0,1.24837063]
[1693875371422,0.74659991,25767.0,25766.0,1.24837063]
[1693875371619,0.42630241,25767.0,25766.0,1.24837063]
[1693875372086,0.28783849,25767.0,25766.0,1.24837063]
[1693875376850,0.3432594,25767.0,25766.0,1.24837063]
[1693875377859,0.80202087,25767.0,25766.0,1.24837063]
[1693875379249,0.3432594,25767.0,25766.0,1.24837063]
[1693875380819,0.80202022,25767.0,25766.0,1.24837063]
[1693875381021,0.3432594,25767.0,25766.0,1.24837063]
[1693875381229,0.80202017,25767.0,25766.0,1.24837063]
[1693875381383,0.3432594,25767.0,25766.0,1.24837063]
[1693875381590,0.80202056,25767.0,25766.0,1.24837063]
[1693875381790,0.3432594,25767.0,25766.0,1.24837063]
[1693875382013,0.80202001,25767.0,25766.0,1.24837063]
[1693875382376,0.3432594,25767.0,25766.0,1.24837063]
[1693875382777,0.80202033,25767.0,25766.0,1.24837063]
[1693875387892,0.69880267,25767.0,25766.0,1.24837063]
[1693875388421,0.24004174,25767.0,25766.0,1.24837063]
[1693875388622,0.69879752,25767.0,25766.0,1.24837063]
[1693875389447,0.24004174,25767.0,25766.0,1.24837063]
[1693875389768,0.69879762,25767.0,25766.0,1.24837063]
[1693875391836,1.13159809,25767.0,25766.0,0.358297]
[1693875392037,1.09752714,25767.0,25766.0,0.358297]
[1693875392244,1.01658714,25767.0,25766.0,0.358297]
[1693875392606,1.09176714,25767.0,25766.0,0.358297]
[1693875392807,1.01658714,25767.0,25766.0,0.358297]
[1693875393652,2.55321406,25767.0,25765.0,0.009]
[1693875393860,0.84540115,25766.0,25764.0,0.0931]
[1693875394067,0.6898395,25765.0,25764.0,0.0931]
[1693875394264,1.2844266,25765.0,25764.0,0.2072116]
[1693875394481,1.1416982,25765.0,25764.0,0.2072116]
[1693875394685,1.1396582,25765.0,25764.0,0.2072116]
[1693875394931,1.25687858,25765.0,25764.0,0.2072116]
[1693875395138,1.25688817,25765.0,25764.0,0.2072116]
[1693875395312,1.25388817,25765.0,25764.0,0.2072116]
[1693875395513,1.24998817,25765.0,25764.0,0.2072116]
[1693875395691,1.25436817,25765.0,25764.0,0.2072116]
[1693875395895,1.25718817,25765.0,25764.0,0.2072116]
[1693875396141,0.63067597,25765.0,25764.0,0.2072116]
[1693875396327,0.86169871,25765.0,25764.0,0.2072116]
[1693875396547,0.78486889,25765.0,25764.0,0.5565356]
[1693875396724,0.55369597,25765.0,25764.0,0.5565356]
[1693875396947,0.78486939,25765.0,25764.0,0.5565356]
[1693875399183,0.78486939,25765.0,25764.0,0.442424]
[1693875402330,0.73870099,25765.0,25764.0,0.442424]
[1693875402546,0.87745783,25765.0,25764.0,0.442424]
[1693875402895,0.87745783,25765.0,25764.0,0.791748]
[1693875403097,0.87745783,25765.0,25764.0,0.707648]
[1693875403913,0.94903783,25765.0,25764.0,0.358324]
[1693875404113,0.81604099,25765.0,25764.0,0.358324]
[1693875404338,0.81628099,25765.0,25764.0,0.358324]
[1693875404549,0.81652099,25765.0,25764.0,0.358324]
[1693875404794,0.81670099,25765.0,25764.0,0.358324]
[1693875405001,0.81700099,25765.0,25764.0,0.358324]
[1693875405204,0.81694099,25765.0,25764.0,0.358324]
[1693875405385,0.81658099,25765.0,25764.0,0.358324]
[1693875405591,0.81700099,25765.0,25764.0,0.358324]
[1693875405794,0.81316099,25765.0,25764.0,0.358324]
[1693875406000,0.81160099,25765.0,25764.0,0.358324]
[1693875406839,0.81226099,25765.0,25764.0,0.358324]
[1693875407016,0.81238099,25765.0,25764.0,0.358324]
[1693875407197,0.81202099,25765.0,25764.0,0.358324]
[1693875407401,0.81238099,25765.0,25764.0,0.358324]
[1693875407612,0.81142099,25765.0,25764.0,0.358324]
[1693875407782,0.81280099,25765.0,25764.0,0.358324]
[1693875407982,0.81556099,25765.0,25764.0,0.358324]
[1693875408324,1.49198661,25765.0,25763.0,0.0931]
[1693875408578,1.30169682,25764.0,25763.0,0.0931]
[1693875408786,1.38539682,25764.0,25763.0,0.0931]
[1693875408986,1.38317682,25764.0,25763.0,0.0931]
[1693875409214,1.43532662,25764.0,25763.0,0.0931]
[1693875409415,1.43496662,25764.0,25763.0,0.0931]
[1693875409617,1.43460662,25764.0,25763.0,0.0931]
[1693875409847,1.43442662,25764.0,25763.0,0.0931]
[1693875410051,1.43502662,25764.0,25763.0,0.0931]
[1693875410230,1.43580662,25764.0,25763.0,0.0931]
[1693875410554,1.43550662,25764.0,25763.0,0.0931]
[1693875410757,1.43352662,25764.0,25763.0,0.0931]
[1693875410902,1.43334662,25764.0,25763.0,0.0931]
[1693875411093,1.52689642,25764.0,25763.0,0.0931]
[1693875411286,1.52575642,25764.0,25763.0,0.0931]
[1693875411488,1.52737642,25764.0,25763.0,0.0931]
[1693875411696,1.53475642,25764.0,25763.0,0.0931]
[1693875411895,1.53487642,25764.0,25763.0,0.2072159]
[1693875412173,1.53541642,25764.0,25763.0,0.2072159]
[1693875412360,1.53649642,25764.0,25763.0,0.2072159]
[1693875412605,1.53007642,25764.0,25763.0,0.2072159]
[1693875412805,1.52773642,25764.0,25763.0,0.2072159]
[1693875412980,1.52947642,25764.0,25763.0,0.2072159]
[1693875413135,1.52935642,25764.0,25763.0,0.1231159]
[1693875413338,1.52917642,25764.0,25763.0,0.1231159]
[1693875413561,1.52893642,25764.0,25763.0,0.1231159]
[1693875413763,1.52875642,25764.0,25763.0,0.1231159]
[1693875413970,1.38956087,25764.0,25763.0,0.1231159]
[1693875414167,1.71317422,25764.0,25763.0,0.1231159]
[1693875414368,1.52382945,25764.0,25763.0,0.1231159]
[1693875414595,1.52490945,25764.0,25763.0,0.009]
[1693875414795,1.52190945,25764.0,25763.0,0.009]
[1693875415015,1.52178945,25764.0,25763.0,0.009]
[1693875415221,1.52154945,25764.0,25763.0,0.009]
[1693875415428,1.52106945,25764.0,25763.0,0.009]
[1693875415628,1.51962945,25764.0,25763.0,0.009]
[1693875415971,1.51896945,25764.0,25763.0,0.009]
[1693875416167,1.51812945,25764.0,25763.0,0.009]
[1693875416405,1.51806945,25764.0,25763.0,0.009]
[1693875416884,1.70459422,25764.0,25763.0,0.1231149]
[1693875417059,1.70447422,25764.0,25763.0,0.1231149]
[1693875417284,1.71023422,25764.0,25763.0,0.1231149]
[1693875417435,1.70939422,25764.0,25763.0,0.1231149]
[1693875417632,1.70303422,25764.0,25763.0,0.1231149]
[1693875417874,1.70285422,25764.0,25763.0,0.1231149]
[1693875418078,1.95442836,25764.0,25763.0,0.1231149]
[1693875418278,1.63438896,25764.0,25763.0,0.1231149]
[1693875418520,1.95443746,25764.0,25763.0,0.1231149]
[1693875418725,1.49562564,25764.0,25763.0,0.1231149]
[1693875419762,1.63438791,25764.0,25763.0,0.1231149]
[1693875420142,1.49562564,25764.0,25763.0,0.1231149]
[1693875422634,1.49562564,25764.0,25763.0,0.009]
[1693875423316,0.85811918,25764.0,25763.0,0.358338]
[1693875424138,0.85812086,25764.0,25763.0,0.358338]
[1693875425947,0.71934964,25764.0,25763.0,0.358338]
[1693875427679,0.78906964,25764.0,25763.0,0.358338]
[1693875427906,0.78888964,25764.0,25763.0,0.358338]
[1693875428088,0.78882964,25764.0,25763.0,0.358338]
[1693875428291,0.78876964,25764.0,25763.0,0.358338]
[1693875428481,0.78798964,25764.0,25763.0,0.358338]
[1693875428695,1.24817682,25764.0,25763.0,0.358338]
[1693875428893,0.78786964,25764.0,25763.0,0.358338]
[1693875429331,1.24661677,25764.0,25763.0,0.358338]
[1693875429532,1.24793677,25764.0,25763.0,0.358338]
[1693875429707,1.24787677,25764.0,25763.0,0.358338]
[1693875430131,1.24781677,25764.0,25763.0,0.4724515]
[1693875430345,1.17815677,25764.0,25763.0,0.5565515]
[1693875430761,0.85819097,25764.0,25763.0,0.5565515]
[1693875431163,0.71934964,25764.0,25763.0,0.5565515]
[1693875431747,0.85819845,25764.0,25763.0,0.5565515]
[1693875432568,0.85819845,25764.0,25763.0,0.9058895]
[1693875434548,0.71934964,25764.0,25763.0,0.9058895]
[1693875435633,1.17814336,25764.0,25763.0,0.9058895]
[1693875437634,1.40942433,25764.0,25763.0,0.9058895]
[1693875437857,1.40942433,25764.0,25763.0,0.791776]
[1693875439610,1.22439956,25764.0,25763.0,0.791776]
[1693875453311,1.22439956,25764.0,25763.0,0.707676]
[1693875456664,1.40970775,25764.0,25763.0,0.707676]
[1693875457685,1.40970775,25764.0,25763.0,0.358338]
[1693875457910,1.49070775,25764.0,25762.0,0.791783]
[1693875458123,0.13897951,25763.0,25762.0,0.791783]
[1693875458329,0.52562478,25763.0,25762.0,0.791783]
[1693875458503,0.76440947,25763.0,25762.0,0.926527]
[1693875459178,0.7647638,25763.0,25762.0,0.926527]
[1693875461479,0.86824585,25763.0,25762.0,0.926527]
[1693875461724,0.86824585,25763.0,25762.0,0.842427]
[1693875469070,0.86824585,25763.0,25762.0,0.707683]
[1693875473574,0.72926634,25763.0,25762.0,0.707683]
[1693875474106,0.72958683,25763.0,25762.0,0.707683]
[1693875476582,1.18837791,25763.0,25762.0,0.707683]
[1693875476906,1.18837791,25763.0,25762.0,1.141134]
[1693875476907,0.76534042,25763.0,25762.0,1.141134]